bitfinex-derivatives/quotes_ETHF0:USTF0_20241004
["timestamp","ask_amount","ask_price","bid_price","bid_amount"]
[1728053909768,3.72268,2366.3,2366.2,0.42268]
[1728053910273,0.42269,2366.2,2366.1,0.42269]
[1728053911573,3.3,2366.3,2366.2,0.42268]
[1728053911876,3.3,2366.6,2366.3,0.42266]
[1728053912069,3.3,2366.6,2366.5,0.42261]
[1728053912871,0.3947,2366.7,2366.6,0.42261]
[1728053914479,0.81729,2366.7,2366.6,0.42261]
[1728053914886,0.3947,2366.7,2366.5,0.399]
[1728053915081,3.3,2366.6,2366.5,0.82162]
[1728053916386,0.3947,2366.7,2366.6,0.42261]
[1728053916587,0.81729,2366.7,2366.6,0.42261]
[1728053917677,0.42261,2366.6,2366.5,0.42261]
[1728053917874,3.72261,2366.6,2366.5,0.42261]
[1728053918490,3.3,2366.6,2366.5,0.42261]
[1728053919084,3.3,2366.6,2366.3,0.42265]
[1728053919385,0.42263,2366.5,2366.3,0.42265]
[1728053919575,0.42264,2366.4,2366.2,1.23587]
[1728053919974,0.42266,2366.3,2366.2,0.4032]
[1728053920186,0.83146,2366.3,2366.2,0.82588]
[1728053920377,0.83146,2366.3,2366.2,0.4032]
[1728053920790,0.83146,2366.3,2366.2,0.82588]
[1728053921084,0.83146,2366.3,2366.2,0.4032]
[1728053921289,0.4088,2366.3,2366.2,0.4032]
[1728053921586,0.4088,2366.3,2366.2,0.82588]
[1728053921885,0.83146,2366.3,2366.2,0.82588]
[1728053922087,0.4088,2366.3,2366.2,0.82588]
[1728053922294,0.42265,2366.4,2366.3,0.42266]
[1728053922588,4.67317,2366.5,2366.2,0.4032]
[1728053922787,0.42266,2366.3,2366.2,0.4032]
[1728053923690,3.72266,2366.3,2366.2,0.4032]
[1728053923890,3.72266,2366.3,2365.9,0.4153]
[1728053923891,0.4227,2366.1,2366.0,0.42271]
[1728053924191,0.4227,2366.1,2366.0,0.4227]
[1728053924388,0.42269,2366.1,2365.9,0.4153]
[1728053924589,4.2645,2366.2,2365.8,0.3994]
[1728053924887,3.72273,2365.9,2365.6,0.3945]
[1728053925184,3.72274,2365.9,2365.8,0.42275]
[1728053925993,3.3,2365.9,2365.8,0.42275]
[1728053926286,3.72273,2365.9,2365.8,0.42275]
[1728053926794,3.3,2365.9,2365.8,0.42275]
[1728053927687,3.72273,2365.9,2365.8,0.42275]
[1728053927987,3.3,2365.9,2365.8,0.42275]
[1728053928190,0.42272,2366.0,2365.9,0.42273]
[1728053928791,4.1261,2366.1,2366.0,0.42271]
[1728053928993,3.7034,2366.1,2365.6,1.85087]
[1728053929395,0.42272,2366.0,2365.9,0.42273]
[1728053929596,3.7034,2366.1,2365.9,0.42273]
[1728053929793,4.12611,2366.1,2366.0,0.42271]
[1728053929990,0.42272,2366.0,2365.9,0.42272]
[1728053930190,3.7034,2366.1,2365.6,1.85087]
[1728053930391,0.42272,2366.0,2365.9,0.42273]
[1728053930902,0.42273,2366.0,2365.9,0.42273]
[1728053931194,4.1261,2366.1,2366.0,0.42271]
[1728053931392,3.7034,2366.1,2365.6,0.3994]
[1728053931600,0.42273,2365.9,2365.8,0.42274]
[1728053931786,4.1261,2366.1,2366.0,0.42271]
[1728053931991,4.12611,2366.1,2366.0,0.42271]
[1728053932191,4.12611,2366.1,2365.6,1.45632]
[1728053932192,3.7034,2366.1,2365.6,1.45632]
[1728053932601,4.1261,2366.1,2366.0,0.42271]
[1728053933096,4.2645,2366.2,2366.1,0.42269]
[1728053933097,3.2078,2366.2,2366.1,0.42269]
[1728053933303,3.2078,2366.2,2366.1,0.83929]
[1728053933594,3.2078,2366.2,2366.1,5.87779]
[1728053933895,6.5078,2366.7,2366.1,15.08559]
[1728053934096,0.4178,2366.8,2366.1,4.4365]
[1728053934294,0.4178,2366.8,2366.5,3.2078]
[1728053934494,0.42259,2366.7,2366.6,0.8392]
[1728053934895,3.3,2366.7,2366.6,0.4166]
[1728053935095,3.3,2366.7,2366.6,0.83921]
[1728053936794,0.4178,2366.8,2366.6,0.4166]
[1728053936989,0.84037,2366.8,2366.6,0.4166]
[1728053937296,0.84037,2366.8,2366.7,0.42259]
[1728053938198,0.42259,2366.7,2366.6,0.4166]
[1728053938394,0.42259,2366.7,2366.2,3.2078]
[1728053938395,0.42264,2366.4,2366.3,0.4217]
[1728053938596,3.72264,2366.4,2366.3,0.4217]
[1728053938899,3.7188,2366.6,2366.3,0.4217]
[1728053939100,3.2078,2366.7,2366.6,0.42261]
[1728053940504,3.63039,2366.7,2366.6,0.42261]
[1728053940908,3.2078,2366.7,2366.6,0.42261]
[1728053941093,4.14038,2366.8,2366.4,1.0566]
[1728053941298,0.4178,2366.8,2366.7,0.42259]
[1728053941600,0.42257,2366.9,2366.8,0.42257]
[1728053941800,4.11484,2367.0,2366.9,0.42255]
[1728053942003,0.81484,2367.0,2366.9,0.42255]
[1728053942199,0.3923,2367.0,2366.8,0.4033]
[1728053942401,4.11485,2367.0,2366.9,0.42255]
[1728053942701,4.11485,2367.0,2366.8,0.82586]
[1728053942702,0.42255,2366.9,2366.8,0.82586]
[1728053943503,0.42259,2366.7,2366.6,0.42259]
[1728053943703,0.42259,2366.8,2366.7,0.42258]
[1728053944405,4.11485,2367.0,2366.9,0.42255]
[1728053944601,0.81485,2367.0,2366.9,0.42255]
[1728053944803,0.42249,2367.3,2367.2,0.4225]
[1728053945106,3.5997,2367.4,2367.0,1.84864]
[1728053945301,0.42249,2367.3,2367.2,0.42249]
[1728053945503,4.02218,2367.4,2367.3,0.42248]
[1728053945699,0.42244,2367.6,2367.5,0.42244]
[1728053945900,6.8997,2367.7,2367.6,0.42243]
[1728053946206,3.71197878,2367.9,2367.6,4.2232]
[1728053946207,3.3,2367.9,2367.6,4.2232]
[1728053946407,3.3,2367.9,2367.3,4.35619]
[1728053946408,3.3,2367.9,2367.8,0.42239]
[1728053946598,3.63016,2368.0,2367.8,0.42239]
[1728053946996,3.2078,2368.0,2367.9,0.42237]
[1728053947507,3.2078,2368.0,2367.8,0.42238]
[1728053947508,3.63017,2368.0,2367.8,0.42238]
[1728053947806,3.63017,2368.0,2367.7,0.4005]
[1728053947807,0.42239,2367.8,2367.7,0.4005]
[1728053948212,3.72239,2367.9,2367.7,0.8229]
[1728053948404,3.72239,2367.9,2367.8,0.42239]
[1728053948708,3.72239,2367.9,2367.7,0.4005]
[1728053948709,3.72239,2367.9,2367.7,0.8229]
[1728053949414,0.42239,2367.8,2367.7,0.8229]
[1728053949704,3.3,2367.9,2367.7,0.4005]
[1728053949908,3.72239,2367.9,2367.8,0.42239]
[1728053950114,3.3,2367.9,2367.7,0.4005]
[1728053950409,3.3,2367.9,2367.7,0.82291]
[1728053950410,0.42239,2367.8,2367.7,0.82291]
[1728053952309,3.2078,2368.0,2367.9,0.42237]
[1728053952511,0.42236,2368.0,2367.9,0.42237]
[1728053952708,0.3919,2368.1,2368.0,0.42236]
[1728053952709,0.81425,2368.1,2368.0,0.42236]
[1728053952917,0.81425,2368.1,2367.7,1.45652]
[1728053952918,3.6919,2368.1,2367.7,0.4005]
[1728053953104,3.72239,2367.8,2367.7,0.8229]
[1728053953505,6.93017,2368.0,2367.9,0.42237]
[1728053954106,0.42238,2367.9,2367.8,0.42237]
[1728053955812,0.42239,2367.8,2367.7,0.82289]
[1728053956016,3.72239,2367.8,2367.7,0.4005]
[1728053956310,0.42247,2367.4,2367.3,0.42246]
[1728053956511,0.42247,2367.4,2366.8,3.34923447]
[1728053956719,0.8466,2367.3,2367.2,0.42249]
[1728053957008,0.4241,2367.3,2367.2,0.42249]
[1728053957203,0.42246,2367.5,2367.4,0.42245]
[1728053957611,0.84654,2367.6,2367.5,0.42244]
[1728053957812,0.4241,2367.6,2367.5,0.42244]
[1728053958205,0.84653,2367.6,2367.5,0.42244]
[1728053958416,0.4241,2367.6,2367.5,0.42244]
[1728053959231,3.719,2367.9,2367.4,0.4102]
[1728053959406,0.84649,2367.9,2367.8,0.42239]
[1728053960112,0.4241,2367.9,2367.8,0.42239]
[1728053960317,3.3,2368.2,2368.0,0.42234]
[1728053960618,0.42237,2368.0,2367.9,0.42236]
[1728053960803,1.45666,2368.1,2368.0,0.42236]
[1728053960804,0.82315,2368.1,2368.0,0.42236]
[1728053962011,3.7008,2368.1,2367.4,1.89143]
[1728053962318,0.42239,2367.9,2367.8,0.42238]
[1728053963708,4.03095,2368.1,2368.0,0.42236]
[1728053964109,0.42237,2368.0,2367.9,0.42236]
[1728053964315,3.6086,2368.1,2367.8,0.42238]
[1728053964316,0.42238,2367.9,2367.8,0.42238]
[1728053964515,0.42237,2368.0,2367.9,0.42237]
[1728053966017,7.96447,2368.1,2367.6,4.26387]
[1728053966319,0.42237,2368.0,2367.9,0.42236]
[1728053966523,0.42239,2367.9,2367.8,0.42238]
[1728053967316,0.42239,2367.9,2367.6,4.26387]
[1728053967317,6.9086,2368.1,2367.6,4.26387]
[1728053967514,0.42236,2368.0,2367.9,0.42236]
[1728053968111,0.42241,2367.7,2367.6,0.42242]
[1728053968335,0.42243,2367.7,2367.6,0.42241]
[1728053969311,4.35595,2367.9,2367.4,0.8353]
[1728053969517,0.42237,2368.0,2367.9,0.42236]
[1728053969823,3.6086,2368.1,2368.0,0.42236]
[1728053970721,0.42231,2368.3,2368.0,0.42236]
[1728053970929,0.42231,2368.3,2368.2,0.42232]
[1728053972423,0.42234,2368.2,2368.1,0.42233]
[1728053974921,0.42236,2368.1,2368.0,0.42235]
[1728053977515,0.42234,2368.2,2368.1,0.42233]
[1728053978024,0.42236,2368.1,2368.0,0.42234]
[1728053982533,0.42234,2368.2,2368.1,0.42231]
[1728053986531,3.6056,2368.4,2367.9,1.45593]
[1728053986730,0.42231,2368.3,2368.2,0.4223]
[1728053988433,0.42231,2368.3,2368.1,0.42232]
[1728053988434,0.42234,2368.2,2368.1,0.42232]
[1728053993834,4.0279,2368.4,2368.3,0.4223]
[1728053994040,3.29247878,2368.6,2368.5,0.42227]
[1728053994241,0.42225,2368.6,2368.5,0.42227]
[1728053994634,0.42225,2368.6,2368.5,0.83337]
[1728053995140,0.42231,2368.3,2368.0,3.3]
[1728053995347,0.42233,2368.2,2368.1,0.42232]
[1728053995537,0.398,2368.2,2368.1,0.42232]
[1728053996239,0.82032,2368.2,2368.1,0.42232]
[1728054000269,0.42234,2368.1,2368.0,0.42235]
[1728054000468,1.45381,2368.2,2367.7,0.409]
[1728054000673,0.398,2368.2,2367.7,0.409]
[1728054000868,0.401,2368.1,2367.7,1.46502]
[1728054001063,6.50027878,2368.3,2367.8,3.2078]
[1728054001280,3.71527878,2368.5,2368.2,3.3]
[1728054001470,0.4228,2368.5,2368.4,0.42228]
[1728054001674,0.84507,2368.5,2368.4,0.42228]
[1728054002464,0.4228,2368.5,2368.4,0.42228]
[1728054002678,3.63005,2368.7,2368.6,0.42225]
[1728054002973,3.6002,2368.7,2368.5,0.42225]
[1728054003172,0.42225,2368.6,2368.5,0.42225]
[1728054003371,3.6002,2368.7,2368.6,0.42225]
[1728054004616,4.02243,2368.7,2368.6,0.42225]
[1728054004779,0.42228,2368.5,2368.4,0.42226]
[1728054005073,4.6558,2368.7,2368.2,0.4223]
[1728054005074,0.42231,2368.3,2368.2,0.4223]
[1728054005280,0.4212,2368.4,2368.0,1.2226]
[1728054005470,0.415,2368.2,2368.0,0.3881]
[1728054005668,0.83733,2368.2,2368.1,0.42234]
[1728054005867,3.71474878,2368.5,2368.4,0.42227]
[1728054006055,0.415,2368.5,2368.4,0.42227]
[1728054006357,6.92251878,2368.7,2368.6,0.42225]
[1728054006358,3.2078,2368.7,2368.6,0.42225]
[1728054006544,3.2078,2368.7,2368.6,3.72225]
[1728054007051,3.63003,2368.7,2368.6,0.42225]
[1728054007350,3.2078,2368.7,2368.6,0.42225]
[1728054007743,3.63003,2368.7,2368.6,0.42225]
[1728054007971,7.85163,2368.7,2368.6,0.42225]
[1728054008260,3.63003,2368.7,2368.6,0.42225]
[1728054010251,3.2078,2368.7,2368.6,0.42225]
[1728054010453,3.2078,2368.7,2368.6,3.72225]
[1728054010653,3.2078,2368.7,2368.6,0.42225]
[1728054011049,0.42228,2368.5,2368.4,0.42227]
[1728054011675,0.42228,2368.5,2368.3,0.4101]
[1728054011906,0.81818,2368.4,2368.3,0.4101]
[1728054012047,0.81818,2368.4,2368.3,0.4223]
[1728054012247,0.3959,2368.4,2368.3,0.4223]
[1728054012653,0.81818,2368.4,2368.3,0.4223]
[1728054012874,0.3959,2368.4,2368.3,0.4223]
[1728054013056,0.81818,2368.4,2368.3,0.4223]
[1728054013553,0.3959,2368.4,2368.3,0.4223]
[1728054013748,0.81818,2368.4,2368.3,0.4223]
[1728054013951,0.3959,2368.4,2368.2,0.4223]
[1728054014249,0.42232,2368.2,2368.1,1.9376201]
[1728054014450,0.42232,2368.2,2368.1,1.5275201]
[1728054014658,0.42232,2368.2,2368.1,1.1051801]
[1728054015162,0.42232,2368.2,2368.1,1.5275201]
[1728054015855,0.3959,2368.4,2368.3,0.4223]
[1728054016853,0.42227,2368.6,2368.5,0.42225]
[1728054017167,8.38432,2368.9,2368.6,0.42223]
[1728054017168,3.72174258,2368.7,2368.6,0.42223]
[1728054017455,0.42227,2368.6,2368.5,0.42226]
[1728054018154,3.29950258,2368.7,2368.6,0.42225]
[1728054019048,3.29950258,2368.7,2368.6,4.64385]
[1728054019262,3.29950258,2368.7,2368.6,7.94385]
[1728054021054,3.84941968,2368.9,2368.6,7.94385]
[1728054021055,3.84941968,2368.9,2368.6,11.15165]
[1728054021259,4.88336438,2369.2,2368.8,3.72221]
[1728054021456,4.88336438,2369.2,2369.1,3.72216]
[1728054021850,4.88336438,2369.2,2369.1,13.94296]
[1728054022166,0.4025,2369.6,2369.1,13.94296]
[1728054022467,0.4025,2369.6,2369.5,0.42209]
[1728054022468,0.82457,2369.6,2369.5,0.42209]
[1728054023362,0.82457,2369.6,2369.4,0.42209]
[1728054023363,0.4221,2369.5,2369.4,0.42209]
[1728054023859,0.4025,2369.6,2369.1,3.3]
[1728054024068,0.4299,2369.4,2368.9,6.5078]
[1728054024359,1.4852,2369.4,2368.9,3.2078]
[1728054024559,1.4852,2369.4,2369.0,0.42218]
[1728054024560,0.42216,2369.1,2369.0,0.42218]
[1728054025160,0.4064,2369.3,2368.9,3.2078]
[1728054025467,0.4225,2369.0,2368.9,3.63]
[1728054027159,1.4852,2369.4,2368.9,3.63]
[1728054027160,0.4299,2369.4,2368.9,17.1516]
[1728054027361,0.3995,2369.5,2369.1,3.3]
[1728054027562,0.3995,2369.5,2369.4,0.42211]
[1728054028873,0.8216,2369.5,2369.4,0.42211]
[1728054029265,0.3995,2369.5,2369.4,0.42211]
[1728054031070,0.82159,2369.5,2369.4,0.42211]
[1728054031776,0.3995,2369.5,2369.4,0.42211]
[1728054031960,0.82159,2369.5,2369.4,0.42211]
[1728054032366,0.3995,2369.5,2369.4,0.42211]
[1728054033071,0.82159,2369.5,2369.4,0.42211]
[1728054033272,0.3995,2369.5,2369.4,0.42211]
[1728054034077,4.6195,2369.5,2369.4,0.42211]
[1728054034374,0.82159,2369.5,2369.4,0.42211]
[1728054035270,0.3995,2369.5,2369.4,0.42211]
[1728054035579,0.82159,2369.5,2369.4,0.42211]
[1728054038076,0.3995,2369.5,2369.4,0.42211]
[1728054038276,0.82159,2369.5,2369.4,0.42211]
[1728054038873,0.3995,2369.5,2369.4,0.42211]
[1728054039073,0.3995,2369.5,2369.4,3.72211]
[1728054039275,0.4081,2369.7,2369.6,0.42207]
[1728054039576,0.8293,2369.7,2369.6,0.42207]
[1728054039871,1.25135,2369.7,2369.6,0.42207]
[1728054040778,0.8293,2369.7,2369.6,0.42207]
[1728054040977,1.25135,2369.7,2369.6,0.42207]
[1728054042876,0.8293,2369.7,2369.6,0.42207]
[1728054043284,3.62984,2369.8,2369.4,4.15241]
[1728054043480,0.81383,2369.9,2369.8,0.42203]
[1728054044183,0.3918,2369.9,2369.6,3.3]
[1728054044478,0.42205,2369.8,2369.7,0.42204]
[1728054044873,0.42205,2369.8,2369.6,3.3]
[1728054045173,0.42208,2369.6,2369.5,0.42207]
[1728054045584,0.83757,2369.7,2369.6,0.42207]
[1728054046077,0.42209,2369.6,2369.5,0.42208]
[1728054046281,0.4051,2369.6,2369.5,0.42208]
[1728054046485,0.82717,2369.6,2369.5,0.42208]
[1728054047676,0.4051,2369.6,2369.5,0.42208]
[1728054048387,0.797,2369.9,2369.8,0.42203]
[1728054048593,0.3918,2369.9,2369.8,0.42203]
[1728054049909,1.05478,2370.5,2370.0,0.422]
[1728054050083,0.81345,2370.3,2370.2,0.42196]
[1728054050275,0.3915,2370.3,2370.0,3.3]
[1728054050586,0.42201,2370.0,2369.9,0.42201]
[1728054050884,0.3915,2370.3,2369.8,6.5078]
[1728054051090,0.3915,2370.3,2370.0,0.42198]
[1728054051091,0.42199,2370.1,2370.0,0.42198]
[1728054053680,0.42199,2370.1,2369.8,6.5078]
[1728054053880,0.425,2370.0,2369.8,3.2078]
[1728054054081,0.42205,2369.8,2369.7,0.42204]
[1728054054785,0.85125,2369.8,2369.7,0.42204]
[1728054055789,0.4292,2369.8,2369.7,0.42204]
[1728054058794,0.85123,2369.8,2369.7,0.42204]
[1728054058983,0.4292,2369.8,2369.4,7.56307]
[1728054059180,0.4292,2369.8,2369.3,0.3958]
[1728054059392,0.4292,2369.8,2369.2,3.3]
[1728054059393,0.42208,2369.6,2369.5,0.42208]
[1728054059889,0.4292,2369.8,2369.5,0.42209]
[1728054060190,0.4292,2369.8,2369.7,0.42205]
[1728054060687,0.3883,2369.9,2369.8,0.42203]
[1728054061791,4.6083,2369.9,2369.3,1.05528]
[1728054061986,0.81033,2369.9,2369.4,1.05527]
[1728054062292,0.42205,2369.8,2369.7,0.42204]
[1728054062485,0.42206,2369.7,2369.2,3.3]
[1728054062793,0.4045,2369.6,2369.5,0.42207]
[1728054065187,0.3883,2369.9,2369.4,3.6899]
[1728054065383,0.7911,2369.9,2369.8,0.42203]
[1728054065982,1.21312,2369.9,2369.8,0.42203]
[1728054066490,0.7911,2369.9,2369.8,0.42203]
[1728054066685,1.21312,2369.9,2369.8,0.42203]
[1728054068593,0.42206,2369.8,2369.4,4.35527]
[1728054068787,0.42206,2369.8,2369.7,0.42204]
[1728054068995,0.42209,2369.6,2369.5,0.42207]
[1728054069991,0.42206,2369.8,2369.7,0.42204]
[1728054070801,0.42208,2369.7,2369.6,0.42206]
[1728054071603,0.42205,2369.8,2369.7,0.42203]
[1728054071805,0.7911,2369.9,2369.8,0.42203]
[1728054071998,0.7911,2369.9,2369.8,3.72203]
[1728054072202,0.4028,2369.9,2369.8,7.94203]
[1728054072899,0.4028,2369.9,2369.8,0.42203]
[1728054073115,0.42206,2369.8,2369.7,0.42204]
[1728054073297,0.85246,2369.8,2369.4,4.74316]
[1728054073499,0.42209,2369.6,2369.5,0.42207]
[1728054073696,0.42211,2369.5,2369.4,0.42209]
[1728054074402,1.05527,2369.4,2369.1,3.2078]
[1728054074707,1.05527,2369.4,2369.2,0.42212]
[1728054074708,0.42213,2369.3,2369.2,0.42212]
[1728054074907,1.26532,2369.4,2369.3,0.42212]
[1728054075513,0.8432,2369.4,2369.3,0.42212]
[1728054076503,0.8432,2369.4,2368.9,6.5078]
[1728054076708,0.42216,2369.2,2369.1,0.42215]
[1728054076901,0.42216,2369.2,2368.9,6.5078]
[1728054076902,1.89848,2369.4,2368.9,6.5078]
[1728054077305,0.42215,2369.2,2369.1,0.42215]
[1728054077504,3.3,2369.2,2368.5,3.3]
[1728054077806,0.42218,2369.0,2368.9,0.42219]
[1728054078003,0.81526,2369.1,2369.0,0.42218]
[1728054078510,0.42213,2369.3,2369.2,0.42213]
[1728054078708,0.42216,2369.2,2369.1,0.42215]
[1728054079413,1.48569,2369.4,2368.9,3.3]
[1728054079611,0.42215,2369.2,2369.1,0.42216]
[1728054080202,0.42214,2369.3,2369.2,0.42213]
[1728054081712,13.4286,2369.3,2368.3,1.25141621]
[1728054081913,0.42224,2368.7,2368.6,0.42224]
[1728054082308,0.42224,2368.7,2368.4,0.8293]
[1728054082309,0.42227,2368.5,2368.4,1.25157]
[1728054082509,0.42227,2368.5,2368.4,0.42227]
[1728054082811,0.42222,2368.8,2368.7,0.42223]
[1728054083014,0.8193,2368.9,2368.4,3.3]
[1728054083313,3.2078,2369.0,2368.9,0.4222]
[1728054083508,1.24144,2369.3,2369.2,0.42214]
[1728054083708,0.8193,2369.3,2368.9,0.8293]
[1728054083925,0.42214,2369.2,2369.1,0.42215]
[1728054084105,0.42215,2369.2,2369.1,0.42215]
[1728054084621,0.42218,2369.0,2368.9,1.25149]
[1728054084813,0.42218,2369.0,2368.2,4.40634746]
[1728054084814,3.3,2369.0,2368.2,4.40634746]
[1728054085120,0.8161,2368.9,2368.8,0.42221]
[1728054085712,0.42216,2369.1,2368.8,0.42221]
[1728054086011,0.3939,2369.1,2369.0,0.42218]
[1728054086212,4.96053,2369.3,2368.8,0.4199]
[1728054086414,4.96053,2369.3,2369.2,0.42214]
[1728054087220,0.81599,2369.5,2369.4,0.42211]
[1728054087420,0.3939,2369.5,2369.4,0.42211]
[1728054087618,0.83435,2369.7,2369.6,0.42207]
[1728054088516,0.42205,2369.8,2369.7,0.42205]
[1728054088727,0.82322,2369.9,2369.8,0.42203]
[1728054088918,0.42202,2369.9,2369.8,0.42203]
[1728054089115,0.4012,2370.1,2370.0,0.422]
[1728054089625,0.82318,2370.1,2370.0,0.422]
[1728054090013,0.4012,2370.1,2369.9,0.42201]
[1728054090230,0.422,2370.0,2369.9,0.42201]
[1728054090857,0.4012,2370.1,2370.0,0.422]
[1728054091030,6.5078,2370.3,2369.7,1.47123]
[1728054091325,3.2078,2370.3,2370.2,0.42196]
[1728054091527,3.2078,2370.3,2370.2,3.72196]
[1728054092128,3.2078,2370.3,2370.2,13.94116]
[1728054092719,0.4218,2370.8,2370.6,0.42189]
[1728054093021,0.84367,2370.8,2370.6,0.42189]
[1728054093325,0.42184,2371.0,2370.8,0.42185]
[1728054093529,4.26229,2371.2,2370.5,3.3]
[1728054093530,0.42187,2370.8,2370.5,3.3]
[1728054093829,6.9042,2370.9,2370.3,0.3946]
[1728054094022,0.42193,2370.4,2370.1,0.14264099]
[1728054094248,1.05475,2370.6,2370.2,0.42195]
[1728054094432,0.42196,2370.3,2370.1,0.42198]
[1728054094728,3.2078,2370.6,2370.0,0.4234]
[1728054094922,0.42194,2370.4,2370.2,0.42195]
[1728054095229,4.26255,2370.6,2370.0,0.4234]
[1728054095430,0.3964,2370.5,2370.0,0.4234]
[1728054095627,0.3964,2370.5,2370.4,0.42193]
[1728054095924,0.3964,2370.5,2370.1,4.35495]
[1728054095925,0.81832,2370.5,2370.1,3.3]
[1728054096126,0.3964,2370.5,2370.4,0.42193]
[1728054097333,1.46476,2370.8,2370.6,0.42188]
[1728054097334,0.42187,2370.8,2370.6,0.42188]
[1728054097541,3.6336,2370.9,2370.6,0.42188]
[1728054097724,0.42187,2370.7,2370.6,0.42188]
[1728054097930,0.42187,2370.7,2370.5,0.4219]
[1728054098127,1.05465,2370.8,2370.3,3.3]
[1728054098428,0.42189,2370.7,2370.5,0.4219]
[1728054098632,0.42189,2370.7,2370.3,3.3]
[1728054098817,0.42189,2370.7,2370.5,0.4219]
[1728054099521,0.42187,2370.8,2370.5,3.3]
[1728054099832,0.42186,2370.8,2370.6,0.42188]
[1728054100020,0.42186,2370.8,2370.5,3.3]
[1728054100226,0.42187,2370.8,2370.6,0.42188]
[1728054100526,4.0533,2370.9,2370.5,3.3]
[1728054100724,0.42186,2370.8,2370.7,0.42187]
[1728054100925,4.0533,2370.9,2370.3,3.3]
[1728054101123,0.42189,2370.6,2370.5,0.4219]
[1728054101327,1.05467,2370.8,2370.1,3.2078]
[1728054101328,3.3,2370.7,2370.1,3.2078]
[1728054101622,0.42194,2370.4,2370.1,3.2078]
[1728054101823,0.4153,2370.5,2370.2,0.42196]
[1728054102122,0.4153,2370.5,2370.4,0.42193]
[1728054102322,0.83721,2370.5,2370.4,0.42193]
[1728054102525,0.42193,2370.4,2370.3,0.42194]
[1728054102828,0.4153,2370.5,2370.4,0.42193]
[1728054103320,0.42188,2370.7,2370.6,0.42189]
[1728054103520,0.83378,2370.7,2370.6,0.42189]
[1728054103828,0.4119,2370.7,2370.6,0.42189]
[1728054104129,0.83377,2370.7,2370.6,0.42189]
[1728054104318,0.4119,2370.7,2370.6,0.42189]
[1728054104717,1.25314,2370.9,2370.5,3.3]
[1728054104925,0.84154,2370.9,2370.8,0.42186]
[1728054105330,0.84154,2370.9,2370.5,3.3]
[1728054105331,0.4197,2370.9,2370.5,3.3]
[1728054105827,0.4197,2370.9,2370.7,0.42186]
[1728054106132,0.42188,2370.7,2370.6,0.42188]
[1728054106925,0.4197,2370.9,2370.5,3.3]
[1728054107132,0.4163,2370.6,2370.5,0.42189]
[1728054109424,0.83819,2370.6,2370.5,0.42189]
[1728054109620,0.4163,2370.6,2370.5,0.42189]
[1728054109826,0.83819,2370.6,2370.5,0.42189]
[1728054110234,0.4163,2370.6,2370.5,0.42189]
[1728054111133,0.83819,2370.6,2370.5,0.42189]
[1728054111333,0.4163,2370.6,2370.5,0.42189]
[1728054112336,0.4163,2370.6,2370.2,1.0549]
[1728054112633,1.232,2370.6,2370.5,0.42191]
[1728054112834,0.8101,2370.6,2370.5,0.42191]
[1728054113137,1.23199,2370.6,2370.5,0.42191]
[1728054113334,0.8101,2370.6,2370.5,0.42191]
[1728054113531,1.232,2370.6,2370.5,0.42191]
[1728054114032,0.8101,2370.6,2370.5,0.42191]
[1728054114231,1.23199,2370.6,2370.5,0.42191]
[1728054114637,0.8101,2370.6,2370.1,7.95365]
[1728054114826,0.42192,2370.5,2370.4,0.42192]
[1728054115134,0.8101,2370.6,2370.4,0.42192]
[1728054115353,1.232,2370.6,2370.5,0.42191]
[1728054115743,0.4163,2370.6,2370.5,0.42191]
[1728054115932,0.83819,2370.6,2370.5,0.42191]
[1728054116526,0.4163,2370.6,2370.2,1.05489]
[1728054116737,0.42192,2370.5,2370.4,0.42191]
[1728054117035,0.83821,2370.6,2370.5,0.42191]
[1728054117737,0.42188,2370.7,2370.6,0.42188]
[1728054117931,0.4219,2370.6,2370.5,0.4219]
[1728054120337,0.4101,2370.7,2370.6,0.42189]
[1728054120740,3.6275,2370.9,2370.6,0.42189]
[1728054120936,3.6275,2370.9,2370.8,0.42186]
[1728054121640,0.4197,2370.9,2370.8,0.42186]
[1728054122643,0.4295,2371.0,2370.9,0.42184]
[1728054122839,0.42181,2371.1,2371.0,0.42182]
[1728054123142,0.8345,2371.2,2371.1,0.4218]
[1728054123537,1.88898,2371.2,2370.7,7.56249]
[1728054123742,0.42184,2370.9,2370.8,0.42184]
[1728054123944,0.8345,2371.2,2370.7,7.56248]
[1728054124140,1.25629,2371.2,2371.1,0.4218]
[1728054124544,0.8345,2371.2,2371.1,0.4218]
[1728054125270,0.8345,2371.2,2371.1,3.7218]
[1728054125447,0.4234,2371.5,2371.1,3.3]
[1728054125753,1.2254,2371.5,2371.4,0.42175]
[1728054126239,0.802,2371.5,2371.4,0.42175]
[1728054126442,0.42173,2371.6,2371.5,0.42172]
[1728054126652,4.26205,2371.7,2371.4,0.42173]
[1728054126653,0.42174,2371.5,2371.4,0.42173]
[1728054126953,0.42173,2371.6,2371.5,0.42172]
[1728054127252,1.85625,2371.7,2371.2,1.84295]
[1728054127551,0.42174,2371.5,2371.4,0.42174]
[1728054127940,0.42173,2371.6,2371.5,0.42173]
[1728054128447,0.42173,2371.6,2371.2,1.84295]
[1728054128448,0.42178,2371.3,2371.2,0.42178]
[1728054128852,4.2168,2371.3,2370.8,0.4091]
[1728054129054,0.42184,2370.9,2370.8,0.83094]